[Event "*** Titled Tuesday Blitz"]
[Site "Chess.com"]
[Date "2021.02.09"]
[Round "1"]
[White "floplover"]
[Black "LawrenceTrent"]
[Result "0-1"]
[WhiteElo "2288"]
[BlackElo "2599"]
[TimeControl "180+1"]
[EndTime "10:05:57 PST"]
[Termination "LawrenceTrent won by resignation"]

1. d4 {[%clk 0:02:52.2]} 1... d5 {[%clk 0:02:58.9]} 2. Nf3 {[%clk 0:02:50.4]}
2... a6 {[%clk 0:02:57.6]} 3. Bf4 {[%clk 0:02:49.2]} 3... Bf5 {[%clk 0:02:56.2]}
4. e3 {[%clk 0:02:48.4]} 4... e6 {[%clk 0:02:56.2]} 5. Nbd2 {[%clk 0:02:45.1]}
5... Nd7 {[%clk 0:02:54.8]} 6. c3 {[%clk 0:02:45.3]} 6... Ngf6 {[%clk 0:02:54]}
7. Be2 {[%clk 0:02:42.4]} 7... Bd6 {[%clk 0:02:50.3]} 8. Bxd6 {[%clk 0:02:40.5]}
8... cxd6 {[%clk 0:02:51.2]} 9. O-O {[%clk 0:02:33.3]} 9... O-O {[%clk
0:02:50.4]} 10. Re1 {[%clk 0:02:33.3]} 10... h6 {[%clk 0:02:46]} 11. Qb3 {[%clk
0:02:30.5]} 11... Qb6 {[%clk 0:02:44]} 12. Rac1 {[%clk 0:02:26.2]} 12... Rfc8
{[%clk 0:02:43.7]} 13. h3 {[%clk 0:02:25.6]} 13... Ne4 {[%clk 0:02:42.8]} 14.
Nxe4 {[%clk 0:02:20.3]} 14... Bxe4 {[%clk 0:02:43.7]} 15. Nd2 {[%clk 0:02:19.2]}
15... Bg6 {[%clk 0:02:43.4]} 16. Bf3 {[%clk 0:02:15.8]} 16... Qxb3 {[%clk
0:02:42.8]} 17. axb3 {[%clk 0:02:10.2]} 17... b5 {[%clk 0:02:43]} 18. Ra1 {[%clk
0:02:09.8]} 18... a5 {[%clk 0:02:43]} 19. Ra2 {[%clk 0:02:05.6]} 19... Nb6
{[%clk 0:02:42.9]} 20. Be2 {[%clk 0:02:03.2]} 20... b4 {[%clk 0:02:42]} 21. c4
{[%clk 0:02:00]} 21... dxc4 {[%clk 0:02:41.8]} 22. bxc4 {[%clk 0:01:57.2]} 22...
a4 {[%clk 0:02:37.4]} 23. f3 {[%clk 0:01:51.2]} 23... a3 {[%clk 0:02:33]} 24.
bxa3 {[%clk 0:01:48.8]} 24... Rxa3 {[%clk 0:02:32.7]} 25. Rxa3 {[%clk
0:01:47.9]} 25... bxa3 {[%clk 0:02:33.6]} 26. Ra1 {[%clk 0:01:48.4]} 26... Ra8
{[%clk 0:02:34.3]} 27. e4 {[%clk 0:01:45.9]} 27... e5 {[%clk 0:02:32.5]} 28. d5
{[%clk 0:01:42.4]} 28... f5 {[%clk 0:02:30]} 29. Kf2 {[%clk 0:01:38]} 29... fxe4
{[%clk 0:02:30]} 30. fxe4 {[%clk 0:01:37.9]} 30... Nd7 {[%clk 0:02:27.9]} 31.
Ke3 {[%clk 0:01:32.1]} 31... Nc5 {[%clk 0:02:26.4]} 32. Ra2 {[%clk 0:01:32]}
32... Kf7 {[%clk 0:02:09.2]} 33. Bd3 {[%clk 0:01:32.3]} 33... Kf6 {[%clk
0:02:03.9]} 34. Nb1 {[%clk 0:01:32]} 34... Rb8 {[%clk 0:02:04.2]} 35. Nxa3
{[%clk 0:01:29.2]} 35... Rb3 {[%clk 0:02:03.3]} 36. Nb5 {[%clk 0:00:59.2]} 36...
Rxd3+ {[%clk 0:02:00.2]} 37. Ke2 {[%clk 0:00:57.5]} 37... Bxe4 {[%clk
0:01:59.2]} 38. Nxd6 {[%clk 0:00:53.4]} 38... Bxg2 {[%clk 0:01:59.4]} 39. Ra5
{[%clk 0:00:45.8]} 39... Bf3+ {[%clk 0:01:59.1]} 40. Kf2 {[%clk 0:00:44]} 40...
Ne4+ {[%clk 0:01:56.1]} 41. Nxe4+ {[%clk 0:00:42.6]} 41... Bxe4 {[%clk 0:01:57]}
42. Ra6+ {[%clk 0:00:40.8]} 42... Kf5 {[%clk 0:01:56.7]} 43. Ra7 {[%clk
0:00:38.9]} 43... Kf4 {[%clk 0:01:55.5]} 44. Rf7+ {[%clk 0:00:38.9]} 44... Bf5
{[%clk 0:01:55.3]} 45. Rxg7 {[%clk 0:00:36]} 45... Rd2+ {[%clk 0:01:54.7]} 46.
Ke1 {[%clk 0:00:36.2]} 46... Rc2 {[%clk 0:01:54.7]} 47. d6 {[%clk 0:00:31.4]}
47... Rxc4 {[%clk 0:01:52.6]} 48. d7 {[%clk 0:00:31.2]} 48... Rd4 {[%clk
0:01:52.9]} 0-1

[Event "*** Titled Tuesday Blitz"]
[Site "Chess.com"]
[Date "2021.02.09"]
[Round "1"]
[White "politeplayer"]
[Black "Gulkov_Igor"]
[Result "1/2-1/2"]
[WhiteElo "2193"]
[BlackElo "2501"]
[TimeControl "180+1"]
[EndTime "10:05:58 PST"]
[Termination "Game drawn by repetition"]

1. e4 {[%clk 0:03:00.9]} 1... c5 {[%clk 0:02:58.7]} 2. Nf3 {[%clk 0:03:00.4]}
2... d6 {[%clk 0:02:57.9]} 3. d4 {[%clk 0:03:00.5]} 3... cxd4 {[%clk 0:02:57.2]}
4. Nxd4 {[%clk 0:03:01.1]} 4... Nf6 {[%clk 0:02:55.4]} 5. Nc3 {[%clk 0:03:01.5]}
5... a6 {[%clk 0:02:55.2]} 6. Bc4 {[%clk 0:03:00.7]} 6... e6 {[%clk 0:02:54.9]}
7. O-O {[%clk 0:03:00]} 7... Be7 {[%clk 0:02:54.6]} 8. Bb3 {[%clk 0:02:59]} 8...
b5 {[%clk 0:02:53.9]} 9. f4 {[%clk 0:02:51.1]} 9... Bb7 {[%clk 0:02:52.4]} 10.
e5 {[%clk 0:02:47.2]} 10... dxe5 {[%clk 0:02:51.5]} 11. fxe5 {[%clk 0:02:46.8]}
11... Bc5 {[%clk 0:02:51]} 12. Be3 {[%clk 0:02:47.1]} 12... Nc6 {[%clk
0:02:50.3]} 13. exf6 {[%clk 0:02:43.6]} 13... Bxd4 {[%clk 0:02:49.5]} 14. Qe1
{[%clk 0:02:37.6]} 14... Qb6 {[%clk 0:02:48.6]} 15. Bxd4 {[%clk 0:02:31.4]}
15... Nxd4 {[%clk 0:02:45.8]} 16. Kh1 {[%clk 0:02:30.8]} 16... Nxb3 {[%clk
0:02:41.7]} 17. cxb3 {[%clk 0:02:10.9]} 17... gxf6 {[%clk 0:02:40.6]} 18. Rd1
{[%clk 0:01:59.3]} 18... Rg8 {[%clk 0:02:38]} 19. Ne4 {[%clk 0:01:56.2]} 19...
Bxe4 {[%clk 0:02:20.4]} 20. Qxe4 {[%clk 0:01:54.3]} 20... Ke7 {[%clk 0:02:19.6]}
21. Qb4+ {[%clk 0:01:46.3]} 21... Ke8 {[%clk 0:02:15.3]} 22. Rxf6 {[%clk
0:01:07.2]} 22... Rg6 {[%clk 0:02:11.2]} 23. Rd7 {[%clk 0:00:33.9]} 23... Kxd7
{[%clk 0:01:43.9]} 24. Rxf7+ {[%clk 0:00:33.5]} 24... Kc6 {[%clk 0:01:34.2]} 25.
Qe4+ {[%clk 0:00:20.2]} 25... Kd6 {[%clk 0:01:27.7]} 26. Qd3+ {[%clk 0:00:20]}
26... Ke5 {[%clk 0:01:18.2]} 27. Qe2+ {[%clk 0:00:19.6]} 27... Kd6 {[%clk
0:01:14.9]} 28. Qd3+ {[%clk 0:00:19.5]} 28... Ke5 {[%clk 0:01:11.1]} 29. Qe2+
{[%clk 0:00:19.5]} 29... Kd6 {[%clk 0:01:06.3]} 30. Qd3+ {[%clk 0:00:19.4]}
1/2-1/2

[Event "*** Titled Tuesday Blitz"]
[Site "Chess.com"]
[Date "2021.02.09"]
[Round "1"]
[White "misterlamine"]
[Black "PlotnikovPavel"]
[Result "0-1"]
[WhiteElo "2266"]
[BlackElo "2568"]
[TimeControl "180+1"]
[EndTime "10:06:00 PST"]
[Termination "PlotnikovPavel won by checkmate"]

1. d4 {[%clk 0:02:53.5]} 1... e6 {[%clk 0:02:59.2]} 2. c4 {[%clk 0:02:47.8]}
2... f5 {[%clk 0:02:58.7]} 3. Nc3 {[%clk 0:02:43.5]} 3... Nf6 {[%clk 0:02:58.2]}
4. Nf3 {[%clk 0:02:41.8]} 4... b6 {[%clk 0:02:57.7]} 5. g3 {[%clk 0:02:41.1]}
5... Bb7 {[%clk 0:02:57.5]} 6. Bg2 {[%clk 0:02:39.3]} 6... Bb4 {[%clk
0:02:57.6]} 7. O-O {[%clk 0:02:37.6]} 7... O-O {[%clk 0:02:57.3]} 8. Bd2 {[%clk
0:02:20]} 8... Bxc3 {[%clk 0:02:56.5]} 9. Bxc3 {[%clk 0:02:20.9]} 9... Ne4
{[%clk 0:02:56.9]} 10. Qc2 {[%clk 0:02:20.4]} 10... Nxc3 {[%clk 0:02:53.2]} 11.
Qxc3 {[%clk 0:02:21.3]} 11... Qe7 {[%clk 0:02:52.2]} 12. Rfd1 {[%clk 0:02:15.1]}
12... d6 {[%clk 0:02:51.8]} 13. Rac1 {[%clk 0:02:12.4]} 13... Nd7 {[%clk
0:02:51.1]} 14. a3 {[%clk 0:02:11.6]} 14... a5 {[%clk 0:02:50.2]} 15. b4 {[%clk
0:02:10.2]} 15... axb4 {[%clk 0:02:50.1]} 16. axb4 {[%clk 0:02:11.1]} 16... Nf6
{[%clk 0:02:47.1]} 17. c5 {[%clk 0:02:10.1]} 17... bxc5 {[%clk 0:02:46]} 18.
bxc5 {[%clk 0:02:11]} 18... Bd5 {[%clk 0:02:45.9]} 19. Nd2 {[%clk 0:02:01.9]}
19... Ra2 {[%clk 0:02:39.7]} 20. Bxd5 {[%clk 0:01:57.7]} 20... Nxd5 {[%clk
0:02:40.6]} 21. Qb3 {[%clk 0:01:56]} 21... Rfa8 {[%clk 0:02:38.8]} 22. cxd6
{[%clk 0:01:40.2]} 22... cxd6 {[%clk 0:02:38.2]} 23. Rc8+ {[%clk 0:01:37.7]}
23... Rxc8 {[%clk 0:02:35]} 24. Qxa2 {[%clk 0:01:38]} 24... Nc3 {[%clk
0:02:33.7]} 25. Qa6 {[%clk 0:01:36.6]} 25... Qc7 {[%clk 0:02:21.2]} 26. Re1
{[%clk 0:01:27.7]} 26... Qc6 {[%clk 0:02:12]} 27. Qa7 {[%clk 0:01:13.8]} 27...
h6 {[%clk 0:02:05.9]} 28. Nf3 {[%clk 0:00:59.4]} 28... Kh7 {[%clk 0:02:01.8]}
29. Kg2 {[%clk 0:00:53.5]} 29... e5 {[%clk 0:01:56]} 30. Qf7 {[%clk 0:00:50]}
30... Qe4 {[%clk 0:01:46.4]} 31. dxe5 {[%clk 0:00:46.6]} 31... dxe5 {[%clk
0:01:45.8]} 32. Qe6 {[%clk 0:00:41.9]} 32... Rc5 {[%clk 0:01:34.8]} 33. h4
{[%clk 0:00:40.4]} 33... Nxe2 {[%clk 0:01:30.1]} 34. h5 {[%clk 0:00:35.9]} 34...
Qxf3+ {[%clk 0:01:29.6]} 35. Kf1 {[%clk 0:00:19.1]} 35... Nxg3+ {[%clk
0:01:26.9]} 36. Kg1 {[%clk 0:00:18.6]} 36... Qh1# {[%clk 0:01:26.8]} 0-1

[Event "*** Titled Tuesday Blitz"]
[Site "Chess.com"]
[Date "2021.02.09"]
[Round "1"]
[White "Fandorine"]
[Black "ChessFighter1975"]
[Result "1-0"]
[WhiteElo "2860"]
[BlackElo "2435"]
[TimeControl "180+1"]
[EndTime "10:06:02 PST"]
[Termination "Fandorine won by resignation"]

1. d4 {[%clk 0:02:59.7]} 1... d6 {[%clk 0:02:59.4]} 2. e4 {[%clk 0:02:57.6]}
2... Nf6 {[%clk 0:02:59.8]} 3. f3 {[%clk 0:02:55.8]} 3... Nbd7 {[%clk
0:02:59.8]} 4. Nc3 {[%clk 0:02:55.5]} 4... e5 {[%clk 0:02:59.7]} 5. Be3 {[%clk
0:02:55.2]} 5... c6 {[%clk 0:02:58.7]} 6. Qd2 {[%clk 0:02:55.2]} 6... b5 {[%clk
0:02:58.1]} 7. O-O-O {[%clk 0:02:52.2]} 7... b4 {[%clk 0:02:57.8]} 8. Nce2
{[%clk 0:02:52.4]} 8... d5 {[%clk 0:02:57.7]} 9. dxe5 {[%clk 0:02:35.8]} 9...
Nxe5 {[%clk 0:02:58.6]} 10. Kb1 {[%clk 0:02:00.3]} 10... Nc4 {[%clk 0:02:22.6]}
11. Qc1 {[%clk 0:02:00.1]} 11... Qa5 {[%clk 0:02:00.2]} 12. Nd4 {[%clk
0:01:55.4]} 12... Bd7 {[%clk 0:01:38.3]} 13. Bxc4 {[%clk 0:01:42.8]} 13... dxc4
{[%clk 0:01:39.2]} 14. Nge2 {[%clk 0:01:40.9]} 14... Be7 {[%clk 0:01:38.3]} 15.
Ng3 {[%clk 0:01:38.7]} 15... g6 {[%clk 0:01:37.5]} 16. h4 {[%clk 0:01:28.4]}
16... h5 {[%clk 0:01:36.4]} 17. Bg5 {[%clk 0:01:26.9]} 17... O-O {[%clk
0:01:31.3]} 18. Rhe1 {[%clk 0:01:21.5]} 18... Rad8 {[%clk 0:01:01.7]} 19. e5
{[%clk 0:01:09.7]} 19... Nd5 {[%clk 0:01:01.5]} 20. Bxe7 {[%clk 0:01:08.8]}
20... Nxe7 {[%clk 0:01:02.4]} 21. Qg5 {[%clk 0:01:09.3]} 21... Qc5 {[%clk
0:00:49.4]} 22. Ne4 {[%clk 0:01:06.5]} 22... Qa5 {[%clk 0:00:23.8]} 23. Qxe7
{[%clk 0:01:06.2]} 23... c3 {[%clk 0:00:24.2]} 24. Nf6+ {[%clk 0:01:01.4]} 24...
Kg7 {[%clk 0:00:24.4]} 25. Nxd7 {[%clk 0:01:01.5]} 25... Rfe8 {[%clk 0:00:20.5]}
26. Ne6+ {[%clk 0:00:58.7]} 26... Kh6 {[%clk 0:00:18.8]} 27. Qg5+ {[%clk
0:00:57.9]} 27... Kh7 {[%clk 0:00:17.6]} 28. Nf6+ {[%clk 0:00:58.4]} 1-0

[Event "*** Titled Tuesday Blitz"]
[Site "Chess.com"]
[Date "2021.02.09"]
[Round "1"]
[White "KeithArkell"]
[Black "Azerichess"]
[Result "0-1"]
[WhiteElo "2463"]
[BlackElo "2990"]
[TimeControl "180+1"]
[EndTime "10:06:04 PST"]
[Termination "Azerichess won by resignation"]

1. d4 {[%clk 0:02:57.5]} 1... d5 {[%clk 0:02:57.4]} 2. Nf3 {[%clk 0:02:57.2]}
2... c5 {[%clk 0:02:56.6]} 3. c4 {[%clk 0:02:56.1]} 3... cxd4 {[%clk 0:02:53.3]}
4. cxd5 {[%clk 0:02:55.6]} 4... Qxd5 {[%clk 0:02:54.2]} 5. Nc3 {[%clk
0:02:53.9]} 5... Qa5 {[%clk 0:02:53.9]} 6. Nxd4 {[%clk 0:02:50.4]} 6... Nf6
{[%clk 0:02:54]} 7. g3 {[%clk 0:02:46.2]} 7... e5 {[%clk 0:02:54.1]} 8. Nb3
{[%clk 0:02:45]} 8... Qc7 {[%clk 0:02:54.6]} 9. Bg2 {[%clk 0:02:44.3]} 9... Bb4
{[%clk 0:02:55.2]} 10. Bd2 {[%clk 0:02:38]} 10... O-O {[%clk 0:02:54.7]} 11. a3
{[%clk 0:02:33.1]} 11... Be7 {[%clk 0:02:47.4]} 12. Rc1 {[%clk 0:02:25.8]} 12...
Nc6 {[%clk 0:02:46.3]} 13. O-O {[%clk 0:02:21.5]} 13... Be6 {[%clk 0:02:34.8]}
14. Bg5 {[%clk 0:01:34.9]} 14... Rfd8 {[%clk 0:02:27.5]} 15. Qc2 {[%clk
0:01:31]} 15... Qb6 {[%clk 0:02:23.2]} 16. Nd2 {[%clk 0:01:09.5]} 16... Nd4
{[%clk 0:02:22.9]} 17. Qb1 {[%clk 0:01:07.5]} 17... Rac8 {[%clk 0:02:22.8]} 18.
Bxf6 {[%clk 0:01:05.8]} 18... gxf6 {[%clk 0:02:08]} 19. e3 {[%clk 0:00:55.7]}
19... Rxc3 {[%clk 0:01:50.1]} 20. exd4 {[%clk 0:00:25.8]} 20... Rxc1 {[%clk
0:01:49.9]} 21. Rxc1 {[%clk 0:00:22.9]} 21... Qxd4 {[%clk 0:01:38.4]} 22. Nf3
{[%clk 0:00:20.5]} 22... Qd3 {[%clk 0:01:31.8]} 23. Qxd3 {[%clk 0:00:17.3]}
23... Rxd3 {[%clk 0:01:32.7]} 24. h3 {[%clk 0:00:14.9]} 24... e4 {[%clk
0:01:14.2]} 25. Nh4 {[%clk 0:00:12.7]} 25... f5 {[%clk 0:01:13.4]} 26. Rc7
{[%clk 0:00:10.5]} 26... Bxh4 {[%clk 0:01:09.5]} 27. gxh4 {[%clk 0:00:09.4]}
27... Rd1+ {[%clk 0:01:08.9]} 28. Kh2 {[%clk 0:00:09]} 28... Rd2 {[%clk
0:01:09.5]} 29. Rxb7 {[%clk 0:00:07.5]} 29... e3 {[%clk 0:01:06.4]} 0-1

[Event "*** Titled Tuesday Blitz"]
[Site "Chess.com"]
[Date "2021.02.09"]
[Round "1"]
[White "maximnovik"]
[Black "kidagent"]
[Result "1-0"]
[WhiteElo "2577"]
[BlackElo "2273"]
[TimeControl "180+1"]
[EndTime "10:06:04 PST"]
[Termination "maximnovik won by resignation"]

1. d4 {[%clk 0:02:56.7]} 1... d5 {[%clk 0:02:59.5]} 2. c4 {[%clk 0:02:55.3]}
2... c6 {[%clk 0:02:59.2]} 3. Nc3 {[%clk 0:02:54]} 3... Nf6 {[%clk 0:02:57.8]}
4. Bf4 {[%clk 0:02:54.5]} 4... e6 {[%clk 0:02:55.5]} 5. e3 {[%clk 0:02:54.9]}
5... Nbd7 {[%clk 0:02:54.6]} 6. Nf3 {[%clk 0:02:50.6]} 6... Be7 {[%clk
0:02:53.9]} 7. cxd5 {[%clk 0:02:49.6]} 7... exd5 {[%clk 0:02:53.4]} 8. h3 {[%clk
0:02:49.9]} 8... O-O {[%clk 0:02:52.9]} 9. Bd3 {[%clk 0:02:50.4]} 9... Re8
{[%clk 0:02:51.6]} 10. O-O {[%clk 0:02:47.5]} 10... Nf8 {[%clk 0:02:50.8]} 11.
Bh2 {[%clk 0:02:45.7]} 11... Ng6 {[%clk 0:02:45.2]} 12. Ne5 {[%clk 0:02:41.4]}
12... Be6 {[%clk 0:02:26]} 13. f4 {[%clk 0:02:32.3]} 13... Nxe5 {[%clk
0:02:20.7]} 14. dxe5 {[%clk 0:02:30.6]} 14... Ne4 {[%clk 0:02:16]} 15. Nxe4
{[%clk 0:02:26]} 15... dxe4 {[%clk 0:02:15.2]} 16. Bxe4 {[%clk 0:02:26.2]} 16...
Qb6 {[%clk 0:02:11.9]} 17. Qe2 {[%clk 0:02:20.9]} 17... Bc5 {[%clk 0:02:09]} 18.
Rae1 {[%clk 0:02:18.5]} 18... Bxa2 {[%clk 0:02:03.1]} 19. f5 {[%clk 0:02:16.8]}
19... Rad8 {[%clk 0:01:52.8]} 20. e6 {[%clk 0:02:05.9]} 20... fxe6 {[%clk
0:01:47.3]} 21. f6 {[%clk 0:02:05.4]} 21... e5 {[%clk 0:01:35.8]} 22. b4 {[%clk
0:02:02.3]} 22... Bf7 {[%clk 0:00:29.6]} 23. bxc5 {[%clk 0:02:00.9]} 23... Qxc5
{[%clk 0:00:29.9]} 24. fxg7 {[%clk 0:02:00.1]} 24... Qb4 {[%clk 0:00:22.9]} 25.
Bxh7+ {[%clk 0:01:47.1]} 25... Kxg7 {[%clk 0:00:20.5]} 26. Rxf7+ {[%clk
0:01:46.5]} 26... Kxf7 {[%clk 0:00:20.4]} 27. Qh5+ {[%clk 0:01:46.2]} 27... Kg7
{[%clk 0:00:20.3]} 28. Qg6+ {[%clk 0:01:43.7]} 28... Kh8 {[%clk 0:00:20.4]} 29.
Rf1 {[%clk 0:01:32.5]} 29... Qc3 {[%clk 0:00:19.1]} 30. Qh6 {[%clk 0:01:27.5]}
30... Re7 {[%clk 0:00:17]} 31. Bf5+ {[%clk 0:01:19]} 31... Kg8 {[%clk
0:00:17.1]} 32. Be6+ {[%clk 0:01:19]} 32... Rxe6 {[%clk 0:00:16.9]} 33. Qxe6+
{[%clk 0:01:18.8]} 33... Kh7 {[%clk 0:00:16.8]} 34. Qf7+ {[%clk 0:01:17.8]}
34... Kh8 {[%clk 0:00:16.9]} 35. Qh5+ {[%clk 0:01:15.6]} 35... Kg8 {[%clk
0:00:16.7]} 36. Qg5+ {[%clk 0:01:14.6]} 36... Kh7 {[%clk 0:00:16.3]} 1-0

[Event "*** Titled Tuesday Blitz"]
[Site "Chess.com"]
[Date "2021.02.09"]
[Round "1"]
[White "redbaron8888"]
[Black "yoelpolanco"]
[Result "1-0"]
[WhiteElo "2534"]
[BlackElo "2216"]
[TimeControl "180+1"]
[EndTime "10:06:06 PST"]
[Termination "redbaron8888 won on time"]

1. e4 {[%clk 0:03:00.9]} 1... c5 {[%clk 0:02:58.5]} 2. Nf3 {[%clk 0:03:00.8]}
2... d6 {[%clk 0:02:58.7]} 3. d4 {[%clk 0:03:00.5]} 3... cxd4 {[%clk 0:02:59.6]}
4. Nxd4 {[%clk 0:03:00.7]} 4... Nf6 {[%clk 0:02:59.3]} 5. Nc3 {[%clk 0:03:00.8]}
5... a6 {[%clk 0:03:00.2]} 6. h3 {[%clk 0:03:00.9]} 6... e5 {[%clk 0:02:54.4]}
7. Nde2 {[%clk 0:02:59.9]} 7... h5 {[%clk 0:02:54.7]} 8. Bg5 {[%clk 0:02:58]}
8... Be7 {[%clk 0:02:49.2]} 9. Bxf6 {[%clk 0:02:49]} 9... Bxf6 {[%clk
0:02:48.9]} 10. Qd3 {[%clk 0:02:49.1]} 10... Nc6 {[%clk 0:02:22.8]} 11. a3
{[%clk 0:02:46.1]} 11... Be6 {[%clk 0:02:21]} 12. O-O-O {[%clk 0:02:43.7]} 12...
Be7 {[%clk 0:02:19.8]} 13. Kb1 {[%clk 0:02:41.8]} 13... O-O {[%clk 0:02:02.5]}
14. Nd5 {[%clk 0:02:39.7]} 14... Bg5 {[%clk 0:02:01.6]} 15. g3 {[%clk
0:02:35.2]} 15... h4 {[%clk 0:02:00.8]} 16. f4 {[%clk 0:02:33.6]} 16... Bh6
{[%clk 0:01:25.7]} 17. f5 {[%clk 0:01:59.7]} 17... Bxd5 {[%clk 0:01:14.8]} 18.
exd5 {[%clk 0:01:53.2]} 18... Nd4 {[%clk 0:00:52]} 19. Nxd4 {[%clk 0:01:40.7]}
19... exd4 {[%clk 0:00:52.9]} 20. Qxd4 {[%clk 0:01:31.7]} 20... hxg3 {[%clk
0:00:52.1]} 21. Rg1 {[%clk 0:01:28]} 21... Qg5 {[%clk 0:00:48.2]} 22. h4 {[%clk
0:01:25.5]} 22... Qf4 {[%clk 0:00:41.5]} 23. Qd3 {[%clk 0:01:15.4]} 23... Qxh4
{[%clk 0:00:35.7]} 24. Qxg3 {[%clk 0:01:06.4]} 24... Qxg3 {[%clk 0:00:34.5]} 25.
Rxg3 {[%clk 0:01:07.3]} 25... f6 {[%clk 0:00:29]} 26. Re1 {[%clk 0:01:00.8]}
26... Bf4 {[%clk 0:00:27.3]} 27. Rb3 {[%clk 0:00:58.1]} 1-0

[Event "*** Titled Tuesday Blitz"]
[Site "Chess.com"]
[Date "2021.02.09"]
[Round "1"]
[White "queen_iryna"]
[Black "suyu28"]
[Result "0-1"]
[WhiteElo "2330"]
[BlackElo "2643"]
[TimeControl "180+1"]
[EndTime "10:06:07 PST"]
[Termination "suyu28 won by resignation"]

1. e4 {[%clk 0:03:00.9]} 1... c6 {[%clk 0:02:59.6]} 2. d4 {[%clk 0:02:58.7]}
2... d5 {[%clk 0:02:59.9]} 3. e5 {[%clk 0:02:56.5]} 3... c5 {[%clk 0:02:57.5]}
4. dxc5 {[%clk 0:02:54.5]} 4... Nc6 {[%clk 0:02:57.3]} 5. Nf3 {[%clk 0:02:38.3]}
5... e6 {[%clk 0:02:54.8]} 6. a3 {[%clk 0:02:37.5]} 6... Bxc5 {[%clk 0:02:53.8]}
7. b4 {[%clk 0:02:37.4]} 7... Bb6 {[%clk 0:02:52.9]} 8. Bb2 {[%clk 0:02:37.5]}
8... Nge7 {[%clk 0:02:52.4]} 9. Bd3 {[%clk 0:02:37]} 9... Ng6 {[%clk 0:02:50]}
10. O-O {[%clk 0:02:31.6]} 10... O-O {[%clk 0:02:47.8]} 11. Nbd2 {[%clk
0:02:29.9]} 11... Bd7 {[%clk 0:02:29.6]} 12. c4 {[%clk 0:02:29]} 12... Bc7
{[%clk 0:02:22.9]} 13. cxd5 {[%clk 0:02:18.6]} 13... exd5 {[%clk 0:02:22.2]} 14.
Bxg6 {[%clk 0:02:15.3]} 14... hxg6 {[%clk 0:02:19.3]} 15. Nb3 {[%clk 0:02:13.6]}
15... Bg4 {[%clk 0:02:17.6]} 16. Re1 {[%clk 0:02:04.4]} 16... Re8 {[%clk
0:02:17.6]} 17. h3 {[%clk 0:01:47.3]} 17... Bxf3 {[%clk 0:02:17]} 18. Qxf3
{[%clk 0:01:48.2]} 18... Bxe5 {[%clk 0:02:17.2]} 19. Bxe5 {[%clk 0:01:36.5]}
19... Nxe5 {[%clk 0:02:10.1]} 20. Qg3 {[%clk 0:01:36.5]} 20... Nc4 {[%clk
0:02:04.5]} 21. Nd4 {[%clk 0:01:19.1]} 21... Qf6 {[%clk 0:02:01.7]} 22. Nb5
{[%clk 0:01:18.4]} 22... a6 {[%clk 0:01:34.5]} 23. Nc7 {[%clk 0:01:00.4]} 23...
Rxe1+ {[%clk 0:01:34.9]} 24. Rxe1 {[%clk 0:01:00.2]} 24... Rd8 {[%clk
0:01:35.5]} 25. Re8+ {[%clk 0:00:23.9]} 25... Rxe8 {[%clk 0:01:30.8]} 26. Nxe8
{[%clk 0:00:24.8]} 26... Qd8 {[%clk 0:00:58.7]} 27. Nc7 {[%clk 0:00:20.4]} 27...
d4 {[%clk 0:00:57.8]} 28. Kf1 {[%clk 0:00:18.7]} 28... d3 {[%clk 0:00:56.5]} 29.
Ke1 {[%clk 0:00:15.4]} 29... d2+ {[%clk 0:00:56.7]} 30. Kd1 {[%clk 0:00:16.3]}
30... Nb2+ {[%clk 0:00:57.2]} 0-1

[Event "*** Titled Tuesday Blitz"]
[Site "Chess.com"]
[Date "2021.02.09"]
[Round "1"]
[White "mapleaff"]
[Black "Funo09"]
[Result "0-1"]
[WhiteElo "2404"]
[BlackElo "2784"]
[TimeControl "180+1"]
[EndTime "10:06:08 PST"]
[Termination "Funo09 won by resignation"]

1. e4 {[%clk 0:03:00.1]} 1... c6 {[%clk 0:02:59.5]} 2. d4 {[%clk 0:02:59.1]}
2... d5 {[%clk 0:03:00]} 3. e5 {[%clk 0:02:59.2]} 3... c5 {[%clk 0:02:57]} 4.
dxc5 {[%clk 0:02:58.1]} 4... e6 {[%clk 0:02:56.9]} 5. a3 {[%clk 0:02:55.1]} 5...
Bxc5 {[%clk 0:02:56.6]} 6. b4 {[%clk 0:02:52.2]} 6... Bb6 {[%clk 0:02:56.9]} 7.
Bb2 {[%clk 0:02:51.3]} 7... Ne7 {[%clk 0:02:56.3]} 8. Nf3 {[%clk 0:02:50.1]}
8... O-O {[%clk 0:02:49.2]} 9. Bd3 {[%clk 0:02:49.8]} 9... Ng6 {[%clk
0:02:48.1]} 10. h4 {[%clk 0:02:47.5]} 10... Nf4 {[%clk 0:02:37.9]} 11. Bxh7+
{[%clk 0:02:18.1]} 11... Kxh7 {[%clk 0:02:35.9]} 12. Ng5+ {[%clk 0:02:17.1]}
12... Kg8 {[%clk 0:02:26.5]} 13. g3 {[%clk 0:02:16.7]} 13... Ng6 {[%clk
0:00:55.3]} 14. Qh5 {[%clk 0:02:12.4]} 14... Re8 {[%clk 0:00:55.4]} 15. f4
{[%clk 0:01:57.5]} 15... Kf8 {[%clk 0:00:31.1]} 16. c4 {[%clk 0:01:29.6]} 16...
dxc4 {[%clk 0:00:27.8]} 17. Nd2 {[%clk 0:01:29.3]} 17... Qd3 {[%clk 0:00:24.9]}
18. Nh7+ {[%clk 0:01:09.9]} 18... Kg8 {[%clk 0:00:20.1]} 19. O-O-O {[%clk
0:00:55.6]} 19... c3 {[%clk 0:00:20]} 20. Nb1 {[%clk 0:00:36]} 20... Be3+ {[%clk
0:00:19.1]} 21. Nd2 {[%clk 0:00:33.1]} 21... Bxd2+ {[%clk 0:00:19]} 22. Rxd2
{[%clk 0:00:33.3]} 22... Qxd2+ {[%clk 0:00:19.4]} 0-1